[Event "Late-Titled-Tuesday-Blitz-December-26-2023"]
[Site "Chess.com"]
[Date "2023.12.26"]
[Round "4"]
[White "elchacal664"]
[Black "AGW2016"]
[Result "0-1"]
[WhiteElo "2289"]
[BlackElo "2564"]
[TimeControl "180+1"]
[EndTime "14:38:11 PST"]
[Termination "AGW2016 won by resignation"]

1. e4 {[%clk 0:02:57.1]} 1... c5 {[%clk 0:03:00]} 2. c3 {[%clk 0:02:56.6]} 2...
d5 {[%clk 0:02:59.4]} 3. d3 {[%clk 0:02:50.3]} 3... Nc6 {[%clk 0:02:58.1]} 4.
Nf3 {[%clk 0:02:45.8]} 4... g6 {[%clk 0:02:54.2]} 5. Be3 {[%clk 0:02:38.7]} 5...
d4 {[%clk 0:02:52.6]} 6. cxd4 {[%clk 0:02:37.3]} 6... cxd4 {[%clk 0:02:53.5]} 7.
Bf4 {[%clk 0:02:36.1]} 7... Bg7 {[%clk 0:02:53.9]} 8. Nbd2 {[%clk 0:02:34]} 8...
e5 {[%clk 0:02:54.3]} 9. Bg5 {[%clk 0:02:32.6]} 9... Nge7 {[%clk 0:02:51.1]} 10.
Be2 {[%clk 0:02:29.2]} 10... O-O {[%clk 0:02:49.8]} 11. O-O {[%clk 0:02:22.4]}
11... h6 {[%clk 0:02:48]} 12. Bh4 {[%clk 0:02:17.2]} 12... Be6 {[%clk
0:02:48.1]} 13. a3 {[%clk 0:02:16]} 13... a5 {[%clk 0:02:45]} 14. Rc1 {[%clk
0:02:13.7]} 14... Qb6 {[%clk 0:02:32.8]} 15. Qc2 {[%clk 0:02:07.6]} 15... Rfc8
{[%clk 0:02:31.2]} 16. Qb1 {[%clk 0:02:06.2]} 16... a4 {[%clk 0:02:21.3]} 17.
Nc4 {[%clk 0:02:03.6]} 17... Qc7 {[%clk 0:02:13.9]} 18. Bxe7 {[%clk 0:01:58.4]}
18... Nxe7 {[%clk 0:01:55]} 19. Ncxe5 {[%clk 0:01:42]} 19... Qb6 {[%clk
0:01:55.1]} 20. Rxc8+ {[%clk 0:01:31.1]} 20... Rxc8 {[%clk 0:01:55.1]} 21. Rc1
{[%clk 0:01:30.9]} 21... Nc6 {[%clk 0:01:50]} 22. Nc4 {[%clk 0:01:22.8]} 22...
Qd8 {[%clk 0:01:48.4]} 23. Ncd2 {[%clk 0:01:19.8]} 23... h5 {[%clk 0:01:45.5]}
24. Bd1 {[%clk 0:01:18.1]} 24... b5 {[%clk 0:01:44.5]} 25. b3 {[%clk 0:01:17.4]}
25... b4 {[%clk 0:01:30]} 26. axb4 {[%clk 0:01:10.8]} 26... a3 {[%clk
0:01:30.6]} 27. b5 {[%clk 0:01:02.4]} 27... Nb4 {[%clk 0:01:31]} 28. Nc4 {[%clk
0:01:02.4]} 28... a2 {[%clk 0:01:30.1]} 29. Qa1 {[%clk 0:00:49.2]} 29... Nxd3
{[%clk 0:01:30.4]} 30. Rc2 {[%clk 0:00:48]} 30... Nb4 {[%clk 0:01:31.1]} 31. Rd2
{[%clk 0:00:48]} 31... d3 {[%clk 0:01:28]} 32. e5 {[%clk 0:00:44.5]} 32... Bxc4
{[%clk 0:01:28.1]} 33. bxc4 {[%clk 0:00:43.5]} 33... Rxc4 {[%clk 0:01:29]} 34.
h4 {[%clk 0:00:33.4]} 34... Qc7 {[%clk 0:01:26.3]} 35. Rxa2 {[%clk 0:00:27.2]}
35... Nxa2 {[%clk 0:01:11.7]} 36. Qxa2 {[%clk 0:00:28.1]} 36... Rc1 {[%clk
0:01:11.3]} 37. Qa8+ {[%clk 0:00:26.7]} 37... Bf8 {[%clk 0:01:10.2]} 38. Qa4
{[%clk 0:00:23.4]} 38... Qc2 {[%clk 0:01:08.9]} 0-1

[Event "Late-Titled-Tuesday-Blitz-December-26-2023"]
[Site "Chess.com"]
[Date "2023.12.26"]
[Round "4"]
[White "ahkashefi2800"]
[Black "vladoboch"]
[Result "1-0"]
[WhiteElo "2616"]
[BlackElo "2407"]
[TimeControl "180+1"]
[EndTime "14:38:17 PST"]
[Termination "ahkashefi2800 won by resignation"]

1. d4 {[%clk 0:03:00.5]} 1... Nf6 {[%clk 0:02:59.8]} 2. Nf3 {[%clk 0:03:00.5]}
2... g6 {[%clk 0:02:58.4]} 3. Bg5 {[%clk 0:03:00.7]} 3... Bg7 {[%clk 0:02:58.1]}
4. c3 {[%clk 0:03:00.8]} 4... O-O {[%clk 0:02:57.9]} 5. e3 {[%clk 0:03:00.9]}
5... d5 {[%clk 0:02:56]} 6. Nbd2 {[%clk 0:03:01]} 6... Nbd7 {[%clk 0:02:54.3]}
7. Qb3 {[%clk 0:03:00.7]} 7... c6 {[%clk 0:02:48.6]} 8. h3 {[%clk 0:03:00.3]}
8... Re8 {[%clk 0:02:45.3]} 9. Be2 {[%clk 0:02:59.6]} 9... Qb6 {[%clk
0:02:26.8]} 10. Bf4 {[%clk 0:02:58.3]} 10... Ne4 {[%clk 0:02:01.1]} 11. Nxe4
{[%clk 0:02:56.8]} 11... dxe4 {[%clk 0:02:02]} 12. Ng5 {[%clk 0:02:57.1]} 12...
Qxb3 {[%clk 0:01:53.4]} 13. axb3 {[%clk 0:02:57]} 13... e5 {[%clk 0:01:40.7]}
14. dxe5 {[%clk 0:02:52.4]} 14... Bxe5 {[%clk 0:01:35.7]} 15. Bc4 {[%clk
0:02:40.2]} 15... Re7 {[%clk 0:01:35.5]} 16. O-O-O {[%clk 0:02:29.9]} 16... Bxf4
{[%clk 0:01:29.8]} 17. exf4 {[%clk 0:02:29.7]} 17... h6 {[%clk 0:01:26.7]} 18.
Nxf7 {[%clk 0:02:22.9]} 18... Rxf7 {[%clk 0:01:27.6]} 19. Rhe1 {[%clk
0:02:20.1]} 19... Nf6 {[%clk 0:01:24.9]} 20. Rd8+ {[%clk 0:02:16]} 20... Kg7
{[%clk 0:01:24.6]} 21. Bxf7 {[%clk 0:02:15.3]} 21... Kxf7 {[%clk 0:01:25.5]} 22.
Red1 {[%clk 0:02:11.7]} 22... b6 {[%clk 0:01:16.3]} 23. Kc2 {[%clk 0:02:06.6]}
23... c5 {[%clk 0:01:15.4]} 24. g4 {[%clk 0:01:58.5]} 24... Bb7 {[%clk
0:01:10.5]} 25. R8d7+ {[%clk 0:01:58.1]} 25... Nxd7 {[%clk 0:01:09.1]} 26. Rxd7+
{[%clk 0:01:58.1]} 26... Kf6 {[%clk 0:01:04.1]} 27. Rxb7 {[%clk 0:01:58]} 27...
g5 {[%clk 0:00:53.1]} 28. f5 {[%clk 0:01:53.4]} 28... Ke5 {[%clk 0:00:45.6]} 29.
Kd2 {[%clk 0:01:53.5]} 29... Kf4 {[%clk 0:00:43.7]} 30. Ke2 {[%clk 0:01:53.4]}
30... h5 {[%clk 0:00:40.2]} 31. gxh5 {[%clk 0:01:43.5]} 31... Kxf5 {[%clk
0:00:37.8]} 32. h6 {[%clk 0:01:41.1]} 32... Kg6 {[%clk 0:00:28.8]} 33. h7 {[%clk
0:01:40.4]} 33... Kh5 {[%clk 0:00:16.8]} 34. Rxa7 {[%clk 0:01:38.8]} 34... Rh8
{[%clk 0:00:13.7]} 35. Rb7 {[%clk 0:01:38.5]} 35... Kh4 {[%clk 0:00:13.4]} 36.
Ke3 {[%clk 0:01:35.4]} 36... Kxh3 {[%clk 0:00:11.6]} 37. Kxe4 {[%clk 0:01:35.6]}
37... Kg2 {[%clk 0:00:07.3]} 38. Kf5 {[%clk 0:01:35.7]} 38... Kxf2 {[%clk
0:00:05]} 39. Kxg5 {[%clk 0:01:36]} 39... Ke2 {[%clk 0:00:05.4]} 40. Rd7 {[%clk
0:01:35.9]} 40... Ke3 {[%clk 0:00:02.8]} 41. Kg6 {[%clk 0:01:35.9]} 41... Ra8
{[%clk 0:00:03]} 42. Kg7 {[%clk 0:01:35]} 1-0

[Event "Late-Titled-Tuesday-Blitz-December-26-2023"]
[Site "Chess.com"]
[Date "2023.12.26"]
[Round "4"]
[White "ozates"]
[Black "KVAIDAN"]
[Result "1-0"]
[WhiteElo "2612"]
[BlackElo "2387"]
[TimeControl "180+1"]
[EndTime "14:38:17 PST"]
[Termination "ozates won by checkmate"]

1. e4 {[%clk 0:03:00.9]} 1... e5 {[%clk 0:02:59.8]} 2. Nf3 {[%clk 0:03:00.9]}
2... d5 {[%clk 0:03:00.1]} 3. exd5 {[%clk 0:02:58.6]} 3... e4 {[%clk 0:03:00.2]}
4. Qe2 {[%clk 0:02:58.9]} 4... Nf6 {[%clk 0:03:00.3]} 5. d3 {[%clk 0:02:58.8]}
5... Bb4+ {[%clk 0:02:58.6]} 6. c3 {[%clk 0:02:45.9]} 6... O-O {[%clk
0:02:58.7]} 7. dxe4 {[%clk 0:02:45.2]} 7... Bc5 {[%clk 0:02:59.2]} 8. Nbd2
{[%clk 0:02:38.6]} 8... Re8 {[%clk 0:02:57.1]} 9. Qc4 {[%clk 0:02:20.5]} 9... b6
{[%clk 0:02:56.8]} 10. Qa4 {[%clk 0:02:11.1]} 10... Bd7 {[%clk 0:02:50.1]} 11.
Bb5 {[%clk 0:02:09.9]} 11... Nxe4 {[%clk 0:02:36.5]} 12. O-O {[%clk 0:02:01.3]}
12... Nxd2 {[%clk 0:02:23]} 13. Bxd2 {[%clk 0:02:00.9]} 13... a6 {[%clk
0:02:21.2]} 14. Bxd7 {[%clk 0:01:59.5]} 14... Nxd7 {[%clk 0:02:20.2]} 15. c4
{[%clk 0:01:44.5]} 15... Ne5 {[%clk 0:02:11.5]} 16. Nxe5 {[%clk 0:01:40.8]}
16... Rxe5 {[%clk 0:02:11.5]} 17. Rae1 {[%clk 0:01:38.4]} 17... Qf6 {[%clk
0:02:03.5]} 18. Rxe5 {[%clk 0:01:34.1]} 18... Qxe5 {[%clk 0:02:03.5]} 19. Re1
{[%clk 0:01:32.4]} 19... Qxb2 {[%clk 0:01:58.2]} 20. Re8+ {[%clk 0:00:46.1]}
20... Rxe8 {[%clk 0:01:57.6]} 21. Qxe8+ {[%clk 0:00:45.6]} 21... Bf8 {[%clk
0:01:57.8]} 22. Be1 {[%clk 0:00:38.9]} 22... Qxa2 {[%clk 0:01:47.4]} 23. Qe4
{[%clk 0:00:22.2]} 23... h6 {[%clk 0:01:43.9]} 24. g3 {[%clk 0:00:20.9]} 24...
a5 {[%clk 0:01:35.1]} 25. Kg2 {[%clk 0:00:21.3]} 25... a4 {[%clk 0:01:35.4]} 26.
Bc3 {[%clk 0:00:11.6]} 26... Bc5 {[%clk 0:01:23.9]} 27. Qe8+ {[%clk 0:00:09.3]}
27... Kh7 {[%clk 0:01:23.1]} 28. Qe4+ {[%clk 0:00:09.9]} 28... g6 {[%clk
0:01:22.2]} 29. Qf4 {[%clk 0:00:10.1]} 29... Kg8 {[%clk 0:00:59.3]} 30. Qf6
{[%clk 0:00:07.6]} 30... Kf8 {[%clk 0:00:57.3]} 31. Qd8# {[%clk 0:00:07.7]} 1-0

[Event "Late-Titled-Tuesday-Blitz-December-26-2023"]
[Site "Chess.com"]
[Date "2023.12.26"]
[Round "4"]
[White "PawnStorn"]
[Black "OneTrickPony_82"]
[Result "1-0"]
[WhiteElo "2374"]
[BlackElo "2484"]
[TimeControl "180+1"]
[EndTime "14:38:20 PST"]
[Termination "PawnStorn won by resignation"]

1. c4 {[%clk 0:03:00.9]} 1... Nf6 {[%clk 0:02:59.5]} 2. Nc3 {[%clk 0:03:01.4]}
2... c5 {[%clk 0:02:58.8]} 3. g3 {[%clk 0:02:59.9]} 3... e6 {[%clk 0:02:59.1]}
4. Bg2 {[%clk 0:03:00.5]} 4... d5 {[%clk 0:02:59.2]} 5. cxd5 {[%clk 0:03:00.8]}
5... exd5 {[%clk 0:02:58.8]} 6. d4 {[%clk 0:02:56.3]} 6... cxd4 {[%clk
0:02:58.8]} 7. Qxd4 {[%clk 0:02:56.9]} 7... Nc6 {[%clk 0:02:59.1]} 8. Qd1 {[%clk
0:02:55]} 8... d4 {[%clk 0:02:58.7]} 9. Nb1 {[%clk 0:02:44.6]} 9... Bc5 {[%clk
0:02:47.5]} 10. Nf3 {[%clk 0:02:44.3]} 10... O-O {[%clk 0:02:46.4]} 11. O-O
{[%clk 0:02:44.9]} 11... h6 {[%clk 0:02:46.3]} 12. Nbd2 {[%clk 0:02:43.9]} 12...
Bb6 {[%clk 0:02:45.1]} 13. Nc4 {[%clk 0:02:43.5]} 13... Re8 {[%clk 0:02:43.7]}
14. Nxb6 {[%clk 0:02:42.2]} 14... Qxb6 {[%clk 0:02:42.9]} 15. b3 {[%clk
0:02:42.7]} 15... Bf5 {[%clk 0:02:34]} 16. Bb2 {[%clk 0:02:41.6]} 16... Rad8
{[%clk 0:02:34.2]} 17. Ne1 {[%clk 0:02:12.8]} 17... Be4 {[%clk 0:02:20.9]} 18.
Nd3 {[%clk 0:02:10.3]} 18... Qb5 {[%clk 0:02:15.8]} 19. Bxe4 {[%clk 0:02:07.7]}
19... Nxe4 {[%clk 0:02:15.2]} 20. Rc1 {[%clk 0:02:07.4]} 20... Qd5 {[%clk
0:02:02.7]} 21. Nf4 {[%clk 0:01:58]} 21... Qf5 {[%clk 0:01:55.1]} 22. Rc4 {[%clk
0:01:53.5]} 22... g5 {[%clk 0:01:45.5]} 23. Nd3 {[%clk 0:01:53]} 23... Qd5
{[%clk 0:01:30.9]} 24. Qc1 {[%clk 0:01:50.8]} 24... h5 {[%clk 0:01:12.8]} 25.
Nc5 {[%clk 0:01:46.5]} 25... Nd6 {[%clk 0:01:08.2]} 26. Nxb7 {[%clk 0:01:23.3]}
26... Ne5 {[%clk 0:00:42.7]} 27. Nxd6 {[%clk 0:01:17.3]} 27... Nxc4 {[%clk
0:00:28.8]} 28. Nxe8 {[%clk 0:01:14.1]} 28... Rxe8 {[%clk 0:00:20.6]} 29. bxc4
{[%clk 0:01:14]} 29... Qf5 {[%clk 0:00:15.2]} 30. Qd2 {[%clk 0:01:10.4]} 30...
h4 {[%clk 0:00:15.3]} 31. Qxd4 {[%clk 0:01:10.3]} 31... Qh7 {[%clk 0:00:08.2]}
32. Qf6 {[%clk 0:01:03.5]} 32... h3 {[%clk 0:00:05.8]} 33. Qxg5+ {[%clk
0:01:03]} 33... Qg6 {[%clk 0:00:06.2]} 34. Qxg6+ {[%clk 0:01:02.3]} 34... fxg6
{[%clk 0:00:07.1]} 35. e3 {[%clk 0:01:01.6]} 1-0

[Event "Late-Titled-Tuesday-Blitz-December-26-2023"]
[Site "Chess.com"]
[Date "2023.12.26"]
[Round "4"]
[White "Zampronha1971"]
[Black "Pertinhez76"]
[Result "1-0"]
[WhiteElo "2333"]
[BlackElo "2066"]
[TimeControl "180+1"]
[EndTime "14:38:21 PST"]
[Termination "Zampronha1971 won by resignation"]

1. e4 {[%clk 0:03:00.9]} 1... c5 {[%clk 0:02:56.7]} 2. Nf3 {[%clk 0:03:01.1]}
2... d6 {[%clk 0:02:56.3]} 3. d4 {[%clk 0:03:01.7]} 3... cxd4 {[%clk 0:02:57]}
4. Nxd4 {[%clk 0:03:02]} 4... Nf6 {[%clk 0:02:57.6]} 5. Nc3 {[%clk 0:03:02.3]}
5... a6 {[%clk 0:02:58.3]} 6. Bg5 {[%clk 0:03:02]} 6... e6 {[%clk 0:02:56.5]} 7.
f4 {[%clk 0:03:01.4]} 7... Be7 {[%clk 0:02:57.1]} 8. Qf3 {[%clk 0:03:01.7]} 8...
Qc7 {[%clk 0:02:55.4]} 9. O-O-O {[%clk 0:03:02.1]} 9... Nbd7 {[%clk 0:02:55.7]}
10. Bd3 {[%clk 0:03:00.6]} 10... h6 {[%clk 0:02:49.9]} 11. e5 {[%clk 0:02:58.8]}
11... hxg5 {[%clk 0:02:42.4]} 12. exf6 {[%clk 0:02:58.1]} 12... Bxf6 {[%clk
0:02:40.6]} 13. Nxe6 {[%clk 0:02:53.6]} 13... fxe6 {[%clk 0:02:35.5]} 14. Bg6+
{[%clk 0:02:53.4]} 14... Kd8 {[%clk 0:02:34.6]} 15. fxg5 {[%clk 0:02:45.5]}
15... Bxg5+ {[%clk 0:02:34]} 16. Kb1 {[%clk 0:02:46.1]} 16... Bf6 {[%clk
0:02:33.5]} 17. Bf7 {[%clk 0:02:41.6]} 17... Ne5 {[%clk 0:02:32.6]} 18. Qg3
{[%clk 0:02:28]} 18... Nxf7 {[%clk 0:02:30.7]} 19. Ne4 {[%clk 0:02:25.1]} 19...
Be5 {[%clk 0:02:26.8]} 20. Qg6 {[%clk 0:02:21.7]} 20... Rh6 {[%clk 0:02:21]} 21.
Qg4 {[%clk 0:02:21.7]} 21... Qb6 {[%clk 0:02:15.1]} 22. c3 {[%clk 0:02:20.9]}
22... Bd7 {[%clk 0:02:06.9]} 23. Rhf1 {[%clk 0:02:20.8]} 23... Be8 {[%clk
0:02:05.2]} 24. Ng5 {[%clk 0:02:15.8]} 24... Nxg5 {[%clk 0:01:46.2]} 25. Qxg5+
{[%clk 0:02:16.7]} 25... Bf6 {[%clk 0:01:44.5]} 26. Qg3 {[%clk 0:02:16.6]} 26...
Be5 {[%clk 0:01:36.8]} 27. Qxe5 {[%clk 0:02:14.7]} 27... d5 {[%clk 0:00:53.8]}
28. Rf8 {[%clk 0:02:13.6]} 28... Rf6 {[%clk 0:00:47.9]} 29. Rg8 {[%clk
0:02:07.2]} 29... Qc7 {[%clk 0:00:44.1]} 30. Rxe8+ {[%clk 0:02:05.5]} 30... Kxe8
{[%clk 0:00:38.1]} 31. Qxc7 {[%clk 0:02:03.5]} 31... Rd8 {[%clk 0:00:38.4]} 32.
Qxg7 {[%clk 0:02:00.6]} 32... Rf7 {[%clk 0:00:38.7]} 33. Qg6 {[%clk 0:01:58.6]}
33... Ke7 {[%clk 0:00:38.8]} 34. Qg5+ {[%clk 0:01:58.8]} 34... Kd7 {[%clk
0:00:38]} 35. c4 {[%clk 0:01:56.6]} 35... Kc7 {[%clk 0:00:29.7]} 36. cxd5 {[%clk
0:01:53.8]} 36... Rfd7 {[%clk 0:00:25.7]} 37. Qe5+ {[%clk 0:01:51.1]} 37... Kb6
{[%clk 0:00:23.6]} 38. Qxe6+ {[%clk 0:01:50.7]} 38... Rd6 {[%clk 0:00:23.8]} 39.
Qe3+ {[%clk 0:01:50.3]} 39... Kc7 {[%clk 0:00:23.6]} 40. h4 {[%clk 0:01:50.2]}
40... a5 {[%clk 0:00:23.1]} 41. h5 {[%clk 0:01:50.4]} 41... a4 {[%clk
0:00:22.9]} 42. h6 {[%clk 0:01:50.6]} 42... a3 {[%clk 0:00:23.3]} 43. bxa3
{[%clk 0:01:46.5]} 43... R6d7 {[%clk 0:00:23.6]} 44. d6+ {[%clk 0:01:43.3]}
44... Kb8 {[%clk 0:00:23.7]} 45. g4 {[%clk 0:01:39.5]} 45... Re8 {[%clk
0:00:21.4]} 1-0

[Event "Late-Titled-Tuesday-Blitz-December-26-2023"]
[Site "Chess.com"]
[Date "2023.12.26"]
[Round "4"]
[White "TST2014"]
[Black "norman927"]
[Result "1-0"]
[WhiteElo "2575"]
[BlackElo "2331"]
[TimeControl "180+1"]
[EndTime "14:38:31 PST"]
[Termination "TST2014 won by resignation"]

1. d4 {[%clk 0:02:59.6]} 1... d5 {[%clk 0:02:59.6]} 2. c4 {[%clk 0:02:58.8]}
2... e6 {[%clk 0:02:59.7]} 3. Nf3 {[%clk 0:02:58.6]} 3... Nf6 {[%clk 0:02:59.3]}
4. Nc3 {[%clk 0:02:57.4]} 4... Bb4 {[%clk 0:02:59.1]} 5. e3 {[%clk 0:02:55.5]}
5... O-O {[%clk 0:02:48.6]} 6. Bd3 {[%clk 0:02:54.1]} 6... b6 {[%clk 0:02:22.8]}
7. cxd5 {[%clk 0:02:51.3]} 7... exd5 {[%clk 0:02:19.8]} 8. a3 {[%clk 0:02:51.1]}
8... Bd6 {[%clk 0:02:05.1]} 9. b4 {[%clk 0:02:49.8]} 9... Bg4 {[%clk 0:01:54.3]}
10. h3 {[%clk 0:02:47]} 10... Bh5 {[%clk 0:01:52.6]} 11. O-O {[%clk 0:02:35.4]}
11... c6 {[%clk 0:01:42.4]} 12. Be2 {[%clk 0:02:29.7]} 12... Nbd7 {[%clk
0:01:41.2]} 13. Bb2 {[%clk 0:02:19.5]} 13... Re8 {[%clk 0:01:25.9]} 14. Rc1
{[%clk 0:02:13.4]} 14... Qe7 {[%clk 0:01:19]} 15. Nh4 {[%clk 0:02:06.6]} 15...
Bxe2 {[%clk 0:01:02]} 16. Nxe2 {[%clk 0:02:06]} 16... Rac8 {[%clk 0:00:56]} 17.
Nf5 {[%clk 0:02:04.1]} 17... Qe6 {[%clk 0:00:54]} 18. Nxd6 {[%clk 0:01:58.2]}
18... Qxd6 {[%clk 0:00:54.1]} 19. Ng3 {[%clk 0:01:54.4]} 19... Ne4 {[%clk
0:00:48.5]} 20. Nxe4 {[%clk 0:01:45.1]} 20... Rxe4 {[%clk 0:00:47.8]} 21. b5
{[%clk 0:01:43.6]} 21... c5 {[%clk 0:00:44.1]} 22. dxc5 {[%clk 0:01:40]} 22...
bxc5 {[%clk 0:00:43.8]} 23. Qd3 {[%clk 0:01:36]} 23... Rce8 {[%clk 0:00:35.4]}
24. Rfd1 {[%clk 0:01:35]} 24... Nb6 {[%clk 0:00:15.3]} 25. Qc3 {[%clk
0:01:30.1]} 25... Qg6 {[%clk 0:00:15.6]} 26. Qxc5 {[%clk 0:01:28]} 26... Na4
{[%clk 0:00:15.4]} 27. Qc2 {[%clk 0:01:21.7]} 27... Nxb2 {[%clk 0:00:15.7]} 28.
Qxb2 {[%clk 0:01:21.5]} 28... d4 {[%clk 0:00:14.4]} 29. Rxd4 {[%clk 0:01:19.7]}
29... Rxd4 {[%clk 0:00:14.8]} 30. Qxd4 {[%clk 0:01:19.5]} 30... h5 {[%clk
0:00:15]} 31. Qxa7 {[%clk 0:01:17.6]} 31... Re5 {[%clk 0:00:13.8]} 32. b6 {[%clk
0:01:15.4]} 32... Rg5 {[%clk 0:00:13.7]} 33. Qa8+ {[%clk 0:01:14.3]} 33... Kh7
{[%clk 0:00:13.2]} 34. Qc6 {[%clk 0:01:06.2]} 34... Qf5 {[%clk 0:00:05.9]} 35.
b7 {[%clk 0:01:03.3]} 35... Qxh3 {[%clk 0:00:06]} 36. b8=Q {[%clk 0:01:00.7]}
1-0

[Event "Late-Titled-Tuesday-Blitz-December-26-2023"]
[Site "Chess.com"]
[Date "2023.12.26"]
[Round "4"]
[White "bazar-wokzal"]
[Black "micke12a"]
[Result "1-0"]
[WhiteElo "2647"]
[BlackElo "2411"]
[TimeControl "180+1"]
[EndTime "14:38:35 PST"]
[Termination "bazar-wokzal won on time"]

1. e4 {[%clk 0:03:00.9]} 1... c5 {[%clk 0:02:49]} 2. c3 {[%clk 0:03:00.7]} 2...
g6 {[%clk 0:02:47.6]} 3. d4 {[%clk 0:03:00.5]} 3... cxd4 {[%clk 0:02:47]} 4.
cxd4 {[%clk 0:03:01.4]} 4... d5 {[%clk 0:02:47.2]} 5. e5 {[%clk 0:03:01.9]} 5...
Bg7 {[%clk 0:02:46.9]} 6. Nc3 {[%clk 0:03:02.4]} 6... Nh6 {[%clk 0:02:46.7]} 7.
Bf4 {[%clk 0:03:02.7]} 7... Nc6 {[%clk 0:02:46.2]} 8. Qd2 {[%clk 0:03:02.5]}
8... Nf5 {[%clk 0:02:42.7]} 9. Nf3 {[%clk 0:03:02.1]} 9... h5 {[%clk 0:02:40.1]}
10. O-O-O {[%clk 0:03:01.8]} 10... a6 {[%clk 0:02:37.9]} 11. Kb1 {[%clk
0:03:01.8]} 11... b5 {[%clk 0:02:36.9]} 12. Be2 {[%clk 0:02:59]} 12... h4 {[%clk
0:02:28.9]} 13. g4 {[%clk 0:02:55.9]} 13... hxg3 {[%clk 0:02:27.4]} 14. hxg3
{[%clk 0:02:55.8]} 14... Rxh1 {[%clk 0:02:24.8]} 15. Rxh1 {[%clk 0:02:55.9]}
15... Qb6 {[%clk 0:02:21.5]} 16. Rd1 {[%clk 0:02:42.1]} 16... e6 {[%clk
0:02:17.7]} 17. g4 {[%clk 0:02:36.6]} 17... Nfe7 {[%clk 0:02:07.6]} 18. Bh6
{[%clk 0:02:36.3]} 18... Kf8 {[%clk 0:01:50.2]} 19. Rh1 {[%clk 0:02:32]} 19...
Ng8 {[%clk 0:01:49]} 20. Be3 {[%clk 0:02:24.4]} 20... Bd7 {[%clk 0:01:43.3]} 21.
Ng5 {[%clk 0:02:23.5]} 21... Na5 {[%clk 0:01:36]} 22. b3 {[%clk 0:02:16.4]}
22... b4 {[%clk 0:01:34.3]} 23. Nd1 {[%clk 0:02:15.5]} 23... Bb5 {[%clk
0:01:27.7]} 24. f4 {[%clk 0:02:08.9]} 24... Bxe2 {[%clk 0:01:26.4]} 25. Qxe2
{[%clk 0:02:09.4]} 25... Nc6 {[%clk 0:01:11.5]} 26. Qf2 {[%clk 0:02:05.8]} 26...
Nge7 {[%clk 0:01:00.4]} 27. Nb2 {[%clk 0:02:00.9]} 27... a5 {[%clk 0:00:52.9]}
28. Na4 {[%clk 0:01:58.4]} 28... Qb5 {[%clk 0:00:53]} 29. Nc5 {[%clk 0:01:58.1]}
29... a4 {[%clk 0:00:42.6]} 30. bxa4 {[%clk 0:01:54.8]} 30... Rxa4 {[%clk
0:00:42.1]} 31. Nxa4 {[%clk 0:01:51.9]} 31... Qxa4 {[%clk 0:00:41.4]} 32. Qc2
{[%clk 0:01:47.3]} 32... Qxc2+ {[%clk 0:00:36.2]} 33. Kxc2 {[%clk 0:01:46.8]}
33... Na5 {[%clk 0:00:36.9]} 34. Bd2 {[%clk 0:01:41.7]} 34... Nec6 {[%clk
0:00:35.8]} 35. Nf3 {[%clk 0:01:40.6]} 35... Nc4 {[%clk 0:00:33.1]} 36. Bc1
{[%clk 0:01:39.6]} 36... Kg8 {[%clk 0:00:18.4]} 37. Kb3 {[%clk 0:01:38.9]} 37...
Bf8 {[%clk 0:00:16.6]} 38. Ka4 {[%clk 0:01:38.3]} 38... Be7 {[%clk 0:00:11.9]}
39. Rd1 {[%clk 0:01:30]} 39... Bd8 {[%clk 0:00:10.2]} 40. Kb5 {[%clk 0:01:28]}
40... N4a5 {[%clk 0:00:07.9]} 41. Bd2 {[%clk 0:01:23.6]} 41... Be7 {[%clk
0:00:04]} 42. Rc1 {[%clk 0:01:20.9]} 42... b3 {[%clk 0:00:03.8]} 43. axb3 {[%clk
0:01:18.3]} 43... Nxb3 {[%clk 0:00:04]} 44. Rxc6 {[%clk 0:01:17.9]} 1-0

[Event "Late-Titled-Tuesday-Blitz-December-26-2023"]
[Site "Chess.com"]
[Date "2023.12.26"]
[Round "4"]
[White "SergioMoralesG"]
[Black "MPCandelario"]
[Result "1-0"]
[WhiteElo "2415"]
[BlackElo "2648"]
[TimeControl "180+1"]
[EndTime "14:38:35 PST"]
[Termination "SergioMoralesG won by checkmate"]

1. d4 {[%clk 0:02:25.8]} 1... d5 {[%clk 0:02:59.4]} 2. c4 {[%clk 0:02:25.1]}
2... e6 {[%clk 0:02:59.3]} 3. Nf3 {[%clk 0:02:25.6]} 3... Nf6 {[%clk 0:02:59.1]}
4. Nc3 {[%clk 0:02:26.2]} 4... Be7 {[%clk 0:02:58.9]} 5. Bf4 {[%clk 0:02:26.6]}
5... O-O {[%clk 0:02:57.8]} 6. e3 {[%clk 0:02:27]} 6... b6 {[%clk 0:02:52.9]} 7.
Bd3 {[%clk 0:02:25.8]} 7... Bb7 {[%clk 0:02:52.5]} 8. O-O {[%clk 0:02:24.7]}
8... Nbd7 {[%clk 0:02:52.6]} 9. cxd5 {[%clk 0:02:22]} 9... exd5 {[%clk
0:02:48.4]} 10. Rc1 {[%clk 0:02:18]} 10... c5 {[%clk 0:02:43.9]} 11. Bb1 {[%clk
0:02:14.3]} 11... a6 {[%clk 0:02:33.7]} 12. Qc2 {[%clk 0:02:08.5]} 12... Rc8
{[%clk 0:02:18.1]} 13. Ne5 {[%clk 0:02:05.5]} 13... g6 {[%clk 0:01:51.2]} 14.
Bh6 {[%clk 0:01:57.7]} 14... Re8 {[%clk 0:01:50.2]} 15. f4 {[%clk 0:01:57.6]}
15... cxd4 {[%clk 0:01:18.6]} 16. exd4 {[%clk 0:01:56.9]} 16... Ne4 {[%clk
0:01:16.4]} 17. Qd3 {[%clk 0:01:18.3]} 17... f5 {[%clk 0:01:08.6]} 18. Nxe4
{[%clk 0:01:17.8]} 18... fxe4 {[%clk 0:01:05.7]} 19. Qh3 {[%clk 0:01:11.8]}
19... Nf8 {[%clk 0:00:51.8]} 20. f5 {[%clk 0:01:05]} 20... Rxc1 {[%clk
0:00:50.6]} 21. Bxc1 {[%clk 0:00:58.8]} 21... Bc8 {[%clk 0:00:51.2]} 22. g4
{[%clk 0:00:50.8]} 22... g5 {[%clk 0:00:41.4]} 23. Qh5 {[%clk 0:00:45.8]} 23...
Bf6 {[%clk 0:00:36.2]} 24. Qf7+ {[%clk 0:00:24.9]} 24... Kh8 {[%clk 0:00:36.4]}
25. Nc6 {[%clk 0:00:25.4]} 25... Qd6 {[%clk 0:00:21.7]} 26. Qxe8 {[%clk
0:00:25.4]} 26... Bd7 {[%clk 0:00:22.3]} 27. Qb8 {[%clk 0:00:15.7]} 27... Qxc6
{[%clk 0:00:21.5]} 28. Qxf8# {[%clk 0:00:15.3]} 1-0